fUST/lending_fUST_20240801
["ID","MTS","AMOUNT","RATE_DAILY","PERIOD"]
[333759842,1722456645374,-1466.511799,0.00013971,2]
[333759843,1722456645383,-1880.64,0.00013971,2]
[333759844,1722456645393,-1880.64,0.00013971,2]
[333759845,1722456645402,-1880.64,0.00013971,2]
[333759847,1722456645412,-1880.64,0.00013971,2]
[333759849,1722456645421,-1880.64,0.00013971,2]
[333759850,1722456645431,-1880.64,0.00013971,2]
[333759851,1722456645440,-1880.79745157,0.00013971,2]
[333759852,1722456645450,-5128.56091493,0.00013972,5]
[333759854,1722456645459,-151.0,0.00013972,2]
[333759855,1722456645469,-151.0,0.00013972,2]
[333759857,1722456645479,-512.97098069,0.00013972,2]
[333759858,1722456645488,-500.0,0.00013972,2]
[333759859,1722456645498,-500.0,0.00013972,2]
[333759860,1722456645508,-276.23406306,0.00013972,2]
[333759861,1722456645519,-500.0,0.00013972,2]
[333759862,1722456645528,-500.0,0.00013972,2]
[333759863,1722456645538,-461.08808009,0.00013972,2]
[333759864,1722456645548,-500.0,0.00013972,2]
[333759865,1722456645558,-253.37515882,0.00013972,2]
[333759866,1722456645568,-726.36,0.00013972,2]
[333759867,1722456645580,-151.0,0.00013972,2]
[333759868,1722456645590,-152.101764,0.00013972,2]
[333759869,1722456645600,-1198.67,0.00013972,2]
[333759870,1722456645610,-151.0,0.00013972,2]
[333759871,1722456645620,-151.0,0.00013972,2]
[333759872,1722456645629,-82.73381713,0.00013972,2]
[333759881,1722456646011,-206.8816348,0.00013507,2]
[333759883,1722456646021,-500.0,0.00013698,2]
[333759885,1722456646030,-500.0,0.00013698,2]
[333759887,1722456646039,-500.0,0.00013698,2]
[333759888,1722456646050,-190.244975,0.00013971,2]
[333759890,1722456646061,-417.26618287,0.00013972,2]
[333759892,1722456646071,-500.0,0.00013972,2]
[333759894,1722456646082,-500.0,0.00013972,2]
[333759896,1722456646091,-500.0,0.00013972,2]
[333759897,1722456646102,-500.0,0.00013972,2]
[333759898,1722456646112,-1182.62,0.00013972,2]
[333759899,1722456646122,-500.0,0.00013972,2]
[333759901,1722456646133,-500.0,0.00013972,2]
[333759903,1722456646144,-151.0,0.00013972,2]
[333759905,1722456646153,-500.0,0.00013972,2]
[333759907,1722456646163,-225.647221,0.00013972,2]
[333759908,1722456646173,-225.647221,0.00013972,2]
[333759909,1722456646185,-225.647221,0.00013972,2]
[333759910,1722456646199,-225.647221,0.00013972,2]
[333759911,1722456646208,-500.0,0.00013972,2]
[333759912,1722456646218,-500.0,0.00013972,2]
[333759913,1722456646229,-500.0,0.00013972,2]
[333759914,1722456646242,-500.0,0.00013972,2]
[333759915,1722456646253,-500.0,0.00013972,2]
[333759916,1722456646263,-500.0,0.00013972,2]
[333759917,1722456646276,-500.0,0.00013972,2]
[333759918,1722456646286,-500.0,0.00013972,2]
[333759919,1722456646296,-500.0,0.00013972,2]
[333759920,1722456646305,-500.0,0.00013972,2]
[333759921,1722456646315,-151.0,0.00013972,2]
[333759922,1722456646324,-151.0,0.00013972,2]
[333759923,1722456646334,-151.0,0.00013972,2]
[333759924,1722456646345,-151.0,0.00013972,2]
[333759925,1722456646356,-151.67232239,0.00013972,2]
[333759926,1722456646367,-759.38,0.00013972,2]
[333759927,1722456646376,-500.0,0.00013972,2]
[333759928,1722456646387,-151.0,0.00013972,2]
[333759929,1722456646396,-151.0,0.00013972,2]
[333759930,1722456646406,-500.0,0.00013972,2]
[333759931,1722456646416,-686.71,0.00013972,2]
[333759932,1722456646428,-198.53077676,0.00013972,2]
[333759933,1722456646438,-500.0,0.00013972,2]
[333759934,1722456646449,-500.0,0.00013972,2]
[333759935,1722456646459,-500.0,0.00013972,2]
[333759936,1722456646469,-748.37,0.00013972,2]
[333759937,1722456646478,-500.0,0.00013972,2]
[333759938,1722456646488,-500.0,0.00013972,2]
[333759939,1722456646499,-596.58,0.00013972,2]
[333759940,1722456646510,-500.0,0.00013972,2]
[333759941,1722456646521,-500.0,0.00013972,2]
[333759942,1722456646531,-500.0,0.00013972,2]
[333759943,1722456646542,-500.0,0.00013972,2]
[333759944,1722456646552,-500.0,0.00013972,2]
[333759945,1722456646563,-500.0,0.00013972,2]
[333759946,1722456646573,-500.0,0.00013972,2]
[333759947,1722456646583,-500.0,0.00013972,2]
[333759948,1722456646592,-500.0,0.00013972,2]
[333759949,1722456646602,-448.48008776,0.00013972,2]
[333759950,1722456646611,-179.363411,0.00013972,2]
[333759951,1722456646621,-1515.455322,0.00013972,2]
[333759952,1722456646630,-179.363411,0.00013972,2]
[333759953,1722456646640,-1515.455322,0.00013972,2]
[333759954,1722456646649,-1515.455322,0.00013972,2]
[333759955,1722456646659,-1515.455322,0.00013972,2]
[333759956,1722456646669,-179.363411,0.00013972,2]
[333759957,1722456646679,-179.363411,0.00013972,2]
[333759958,1722456646690,-500.0,0.00013972,2]
[333759959,1722456646701,-750.08,0.00013972,2]
[333759960,1722456646712,-784.8,0.00013972,2]
[333759961,1722456646722,-500.0,0.00013972,2]
[333759962,1722456646734,-602.68,0.00013972,2]
[333759963,1722456646747,-500.0,0.00013972,2]
[333759964,1722456646757,-1171.0,0.00013972,2]
[333759965,1722456646767,-622.15,0.00013972,2]
[333759966,1722456646777,-500.0,0.00013972,2]
[333759967,1722456646786,-817.96,0.00013972,2]
[333759968,1722456646796,-678.15,0.00013972,2]
[333759969,1722456646806,-151.0,0.00013972,2]
[333759970,1722456646815,-151.0,0.00013972,2]
[333759971,1722456646825,-972.48,0.00013972,2]
[333759972,1722456646835,-855.17,0.00013972,2]
[333759973,1722456646845,-1352.89,0.00013972,2]
[333759974,1722456646855,-937.53,0.00013972,2]
[333759975,1722456646864,-500.0,0.00013972,2]
[333759976,1722456646875,-151.0,0.00013972,2]
[333759977,1722456646883,-151.0,0.00013972,2]
[333759978,1722456646893,-594.27,0.00013972,2]
[333759979,1722456646902,-500.0,0.00013972,2]
[333759980,1722456646912,-500.0,0.00013972,2]
[333759981,1722456646924,-151.0,0.00013972,2]
[333759982,1722456646933,-500.0,0.00013972,2]
[333759983,1722456646943,-151.0,0.00013972,2]
[333759984,1722456646954,-500.0,0.00013972,2]
[333759985,1722456646964,-1258.945573,0.00013972,2]
[333759986,1722456646974,-1258.945573,0.00013972,2]
[333759987,1722456646985,-500.0,0.00013972,2]
[333759988,1722456646994,-1258.945573,0.00013972,2]
[333759989,1722456647095,-1258.945573,0.00013972,2]
[333759990,1722456647106,-500.0,0.00013972,2]
[333759991,1722456647115,-500.0,0.00013972,2]
[333759992,1722456647125,-151.0,0.00013972,2]
[333759993,1722456647134,-151.0,0.00013972,2]
[333759994,1722456647143,-500.0,0.00013972,2]
[333759995,1722456647153,-519.43,0.00013972,2]
[333759996,1722456647163,-500.0,0.00013972,2]
[333759997,1722456647172,-557.87,0.00013972,2]
[333759998,1722456647184,-500.0,0.00013972,2]
[333759999,1722456647197,-500.0,0.00013972,2]
[333760000,1722456647209,-500.0,0.00013972,2]
[333760001,1722456647219,-500.0,0.00013972,2]
[333760002,1722456647231,-500.0,0.00013972,2]
[333760003,1722456647242,-1943.68,0.00013972,2]
[333760004,1722456647253,-500.0,0.00013972,2]
[333760005,1722456647264,-151.0,0.00013972,2]
[333760006,1722456647274,-151.0,0.00013972,2]
[333760007,1722456647284,-500.0,0.00013972,2]
[333760008,1722456647294,-10003.25,0.00013972,2]
[333760009,1722456647303,-1685.46,0.00013972,2]
[333760010,1722456647314,-1246.72,0.00013972,2]
[333760011,1722456647324,-500.0,0.00013972,2]
[333760012,1722456647334,-500.0,0.00013972,2]
[333760013,1722456647343,-500.0,0.00013972,2]
[333760014,1722456647356,-3474.86,0.00013972,2]
[333760015,1722456647365,-1264.18,0.00013972,2]
[333760016,1722456647374,-500.0,0.00013972,2]
[333760017,1722456647384,-1635.32,0.00013972,2]
[333760018,1722456647393,-500.0,0.00013972,2]
[333760019,1722456647403,-500.0,0.00013972,2]
[333760020,1722456647414,-500.0,0.00013972,2]
[333760021,1722456647424,-1755.38,0.00013972,2]
[333760022,1722456647434,-500.0,0.00013972,2]
[333760023,1722456647443,-500.0,0.00013972,2]
[333760024,1722456647455,-959.84,0.00013972,2]
[333760025,1722456647467,-500.0,0.00013972,2]
[333760026,1722456647479,-151.0,0.00013972,2]
[333760027,1722456647489,-151.0,0.00013972,2]
[333760028,1722456647499,-236.88596401,0.00013972,2]
[333760029,1722456647511,-500.0,0.00013972,2]
[333760030,1722456647522,-151.0,0.00013972,2]
[333760031,1722456647531,-151.0,0.00013972,2]
[333760032,1722456647542,-500.0,0.00013972,2]
[333760033,1722456647553,-500.0,0.00013972,2]
[333760034,1722456647565,-722.7,0.00013972,2]
[333760035,1722456647574,-946.97681,0.00013972,2]
[333760036,1722456647586,-946.97681,0.00013972,2]
[333760037,1722456647595,-2764.38,0.00013972,2]
[333760038,1722456647607,-946.97681,0.00013972,2]
[333760039,1722456647617,-946.97681,0.00013972,2]
[333760040,1722456647629,-500.0,0.00013972,2]
[333760041,1722456647641,-668.94,0.00013972,2]
[333760042,1722456647650,-1153.8,0.00013972,2]
[333760043,1722456647659,-1022.4,0.00013972,2]
[333760044,1722456647668,-257.42249911,0.00013972,2]
[333760045,1722456647678,-1428.993001,0.00013972,2]
[333760046,1722456647687,-1428.993001,0.00013972,2]
[333760047,1722456647696,-500.0,0.00013972,2]
[333760048,1722456647706,-1428.993001,0.00013972,2]
[333760049,1722456647715,-1428.993001,0.00013972,2]
[333760050,1722456647725,-500.0,0.00013972,2]
[333760051,1722456647734,-151.0,0.00013972,2]
[333760052,1722456647744,-151.0,0.00013972,2]
[333760053,1722456647754,-461.571375,0.00013972,2]
[333760054,1722456647764,-461.571375,0.00013972,2]
[333760055,1722456647773,-500.0,0.00013972,2]
[333760056,1722456647783,-500.0,0.00013972,2]
[333760057,1722456647792,-1503.3,0.00013972,2]
[333760058,1722456647801,-461.571375,0.00013972,2]
[333760059,1722456647810,-461.571375,0.00013972,2]
[333760060,1722456647820,-1565.07,0.00013972,2]
[333760061,1722456647830,-6027.31,0.00013972,2]
[333760062,1722456647840,-500.0,0.00013972,2]
[333760063,1722456647850,-173.85620724,0.00013972,2]
[333760064,1722456647861,-3079.09,0.00013972,2]
[333760065,1722456647870,-500.0,0.00013972,2]
[333760066,1722456647879,-1263.95,0.00013972,2]
[333760067,1722456647888,-181.20532155,0.00013972,2]
[333760068,1722456647898,-500.0,0.00013972,2]
[333760069,1722456647907,-552.66,0.00013972,2]
[333760070,1722456647916,-1391.48,0.00013972,2]
[333760071,1722456647926,-500.0,0.00013972,2]
[333760072,1722456647936,-696.09,0.00013972,2]
[333760073,1722456647945,-730.96,0.00013972,2]
[333760074,1722456647954,-500.0,0.00013972,2]
[333760075,1722456647964,-1507.0,0.00013972,2]
[333760076,1722456647973,-643.4,0.00013972,2]
[333760077,1722456647983,-1119.77,0.00013972,2]
[333760078,1722456647993,-595.76,0.00013972,2]
[333760079,1722456648003,-500.0,0.00013972,2]
[333760080,1722456648012,-949.9,0.00013972,2]
[333760081,1722456648022,-151.0,0.00013972,2]
[333760082,1722456648031,-151.0,0.00013972,2]
[333760083,1722456648040,-500.0,0.00013972,2]
[333760084,1722456648050,-563.33,0.00013972,2]
[333760085,1722456648059,-1818.7,0.00013972,2]
[333760086,1722456648070,-500.0,0.00013972,2]
[333760087,1722456648079,-500.0,0.00013972,2]
[333760088,1722456648089,-749.54,0.00013972,2]
[333760089,1722456648098,-7787.85,0.00013972,2]
[333760090,1722456648109,-514.44022575,0.00013972,2]
[333760091,1722456648118,-378.5948523,0.00013972,2]
[333760092,1722456648127,-500.0,0.00013972,2]
[333760093,1722456648136,-30.26317419,0.00013972,2]
[333760094,1722456648172,-635.6,0.00013972,2]
[333760095,1722456648267,-500.0,0.00013698,2]
[333760096,1722456648278,-500.0,0.00013698,2]
[333760097,1722456648287,-288.02682581,0.00013972,2]
[333760098,1722456648297,-11.97317419,0.00013972,2]
[333760099,1722456649063,180.41738233,9.999e-05,2]
[333760100,1722456655560,209.11051331,9.999e-05,2]
[333760102,1722456698983,154.76012181,0.0001,2]
[333760103,1722456714204,154.91465787,9.999e-05,2]
[333760104,1722456721522,288.99555282,9.999e-05,2]
[333760105,1722456726919,162.56875543,9.999e-05,2]
[333760106,1722456731791,727.27742318,9.999e-05,2]
[333760107,1722456733532,160.08287463,9.999e-05,2]
[333760108,1722456733726,220.0298668,0.0001,2]
[333760109,1722456752197,333.84987696,9.999e-05,2]
[333760110,1722456787251,154.77569405,9.999e-05,2]
[333760111,1722456789613,209.11051331,9.999e-05,2]
[333760114,1722456801994,154.76012181,0.0001,2]
[333760115,1722456865610,1629.61029194,0.0001,2]
[333760116,1722456865995,154.85800451,0.0001,2]
[333760117,1722456878175,14510.78906261,0.0001,2]
[333760118,1722456895582,209.11051331,9.999e-05,2]
[333760119,1722456923507,154.77557542,0.0001,2]
[333760120,1722456933497,154.77557542,0.0001,2]
[333760121,1722456971604,1629.61029194,0.0001,2]
[333760122,1722456975595,209.11051331,9.999e-05,2]
[333760123,1722457017249,3027.0,0.0001002,2]
[333760124,1722457085614,1627.90526829,0.0001002,2]
[333760125,1722457087080,175.22234489,9.999e-05,2]
[333760189,1722457535463,3000.0,0.0001002,2]
[333760191,1722457549317,155.15168842,9.999e-05,2]
[333760194,1722457559051,4710.72234215,9.999e-05,2]
[333760195,1722457561577,2108.0144235,9.999e-05,2]
[333760196,1722457567375,154.98939785,0.0001002,2]
[333760197,1722457576567,155.31254566,9.999e-05,2]
[333760198,1722457579054,1626.57901453,0.0001002,2]
[333760213,1722457719116,1000.0,0.00012,7]
[333760216,1722457730583,5511.41218488,0.0001,2]
[333760303,1722457832223,-300.0,0.00010368,2]
[333760305,1722457832235,-300.0,0.00010368,2]
[333760307,1722457832246,-273.3,0.00010369,2]
[333760311,1722457832282,-1999.975726,0.00010369,2]
[333760314,1722457832295,-9990.96701465,0.00010369,2]
[333760605,1722457838220,-12635.75725935,0.00010369,2]
[333760606,1722457838230,-166.666666,0.00010959,2]
[333760607,1722457838240,-1019.84,0.00010959,2]
[333760608,1722457838250,-1944.76,0.00010959,2]
[333760609,1722457838260,-1620.63,0.00010959,2]
[333760610,1722457838272,-1350.52,0.00010959,2]
[333760611,1722457838284,-250.0,0.00011163,2]
[333760612,1722457838293,-250.0,0.00011194,2]
[333760613,1722457838303,-166.666666,0.00011215,2]
[333760614,1722457838312,-250.0,0.00011224,2]
[333760615,1722457838322,-250.0,0.00011255,2]
[333760616,1722457838332,-250.0,0.00011286,2]
[333760617,1722457838341,-250.0,0.00011316,2]
[333760618,1722457838352,-250.0,0.00011347,2]
[333760619,1722457838361,-250.0,0.00011377,2]
[333760620,1722457838370,-420.0,0.00011401,2]
[333760621,1722457838380,-420.0,0.00011405,2]
[333760622,1722457838390,-250.0,0.00011408,2]
[333760623,1722457838400,-250.0,0.00011439,2]
[333760624,1722457838409,-250.0,0.00011469,2]
[333760625,1722457838419,-166.666666,0.00011472,2]
[333760626,1722457838428,-250.0,0.000115,2]
[333760627,1722457838440,-250.0,0.0001153,2]
[333760628,1722457838451,-250.0,0.00011561,2]
[333760629,1722457838460,-250.0,0.00011592,2]
[333760630,1722457838470,-250.0,0.00011622,2]
[333760631,1722457838479,-250.0,0.00011653,2]
[333760632,1722457838489,-250.0,0.00011683,2]
[333760633,1722457838499,-250.0,0.00011714,2]
[333760634,1722457838509,-166.666666,0.00011728,2]
[333760635,1722457838518,-250.0,0.00011745,2]
[333760636,1722457838527,-166.666666,0.00011985,2]
[333760637,1722457838536,-177.8153177,0.00012119,2]
[333760638,1722457838545,-166.666666,0.00012241,2]
[333760639,1722457838555,-587.0,0.00012545,2]
[333760640,1722457838567,-206.8816348,0.00012878,2]
[333760641,1722457838576,-3027.66807224,0.000129,2]
[333760642,1722457838586,-162.162343,0.00012986,2]
[333760643,1722457838595,-7968.33486527,0.00013,2]
[333760644,1722457838604,-3027.66807221,0.00013293,2]
[333760645,1722457838614,-1527.71,0.00013424,2]
[333760646,1722457838624,-222.9635091,0.00013507,2]
[333760647,1722457838633,-206.8816348,0.00013507,2]
[333760648,1722457838646,-412.661783,0.00013507,2]
[333760649,1722457838656,-324.66183597,0.00013588,2]
[333760650,1722457838666,-2000.0,0.00013588,2]
[333760651,1722457838676,-5079.65835669,0.00013588,2]
[333760652,1722457838688,-324.66183594,0.0001359,2]
[333760653,1722457838697,-324.66183594,0.00013593,2]
[333760654,1722457838706,-324.66183594,0.00013595,2]
[333760655,1722457838716,-324.66183594,0.00013597,2]
[333760656,1722457838727,-1620.45886131,0.00013598,2]
[333760657,1722457838737,-438.99322283,0.00013598,2]
[333760658,1722457838747,-1947.72662048,0.000136,2]
[333760659,1722457838756,-3146.3964416,0.00013678,2]
[333760660,1722457838765,-18878.3786496,0.00013678,2]
[333760661,1722457838775,-999.999999,0.00013684,2]
[333760662,1722457838784,-13041.86002713,0.00013686,2]
[333760663,1722457838794,-1527.71,0.00013687,2]
[333760664,1722457838805,-10000.0,0.00013688,2]
[333760665,1722457838816,-3146.3964416,0.00013688,2]
[333760666,1722457838826,-1527.71,0.00013688,2]
[333760667,1722457838835,-1527.71,0.00013688,2]
[333760668,1722457838846,-22024.7750912,0.00013688,2]
[333760669,1722457838855,-3146.3964416,0.00013689,2]
[333760670,1722457838866,-1527.71,0.00013697,2]
[333760671,1722457838875,-1527.71,0.00013697,2]
[333760672,1722457838884,-1527.71,0.00013697,2]
[333760673,1722457838893,-1527.71,0.00013697,2]
[333760674,1722457838903,-1527.71,0.00013697,2]
[333760675,1722457838913,-1428.17736543,0.00013697,2]
[333760676,1722457838922,-25378.94404444,0.00013698,5]
[333760677,1722457838931,-500.0,0.00013698,2]
[333760678,1722457838944,-500.0,0.00013698,2]
[333760679,1722457838954,-500.0,0.00013698,2]
[333760680,1722457838963,-500.0,0.00013698,2]
[333760681,1722457838973,-446.65298212,0.00013698,2]
[333760682,1722457838982,-500.0,0.00013698,2]
[333760683,1722457838991,-500.0,0.00013698,2]
[333760684,1722457839000,-500.0,0.00013698,2]
[333760685,1722457839009,-533.88971045,0.00013698,2]
[333760686,1722457839018,-500.0,0.00013698,2]
[333760687,1722457839028,-500.0,0.00013698,2]
[333760688,1722457839037,-500.0,0.00013698,2]
[333760689,1722457839047,-500.0,0.00013698,2]
[333760690,1722457839056,-500.0,0.00013698,2]
[333760691,1722457839066,-502.51104892,0.00013698,2]
[333760692,1722457839075,-500.0,0.00013698,2]
[333760693,1722457839085,-500.0,0.00013698,2]
[333760694,1722457839096,-500.0,0.00013698,2]
[333760695,1722457839107,-500.0,0.00013698,2]
[333760696,1722457839118,-500.0,0.00013698,2]
[333760697,1722457839127,-500.0,0.00013698,2]
[333760698,1722457839136,-226.83786871,0.00013698,2]
[333760699,1722457839146,-560.02860855,0.00013698,2]
[333760700,1722457839155,-251.60801452,0.00013698,2]
[333760701,1722457839165,-500.0,0.00013698,2]
[333760702,1722457839176,-500.0,0.00013698,2]
[333760703,1722457839190,-520.38217164,0.00013698,2]
[333760704,1722457839200,-500.0,0.00013698,2]
[333760705,1722457839210,-500.0,0.00013698,2]
[333760706,1722457839221,-500.0,0.00013698,2]
[333760707,1722457839231,-500.0,0.00013698,2]
[333760708,1722457839241,-500.0,0.00013698,2]
[333760709,1722457839253,-500.0,0.00013698,2]
[333760710,1722457839266,-503.59309508,0.00013698,2]
[333760711,1722457839276,-500.0,0.00013698,2]
[333760712,1722457839285,-500.0,0.00013698,2]
[333760713,1722457839297,-500.0,0.00013698,2]
[333760714,1722457839307,-500.0,0.00013698,2]
[333760715,1722457839316,-500.0,0.00013698,2]
[333760716,1722457839328,-500.0,0.00013698,2]
[333760717,1722457839338,-500.0,0.00013698,2]
[333760718,1722457839348,-500.0,0.00013698,2]
[333760719,1722457839359,-610.18274789,0.00013698,2]
[333760720,1722457839369,-402.99362953,0.00013698,2]
[333760721,1722457839378,-660.88,0.00013698,2]
[333760722,1722457839390,-500.0,0.00013698,2]
[333760723,1722457839399,-500.0,0.00013698,2]
[333760724,1722457839409,-177.56488755,0.00013698,2]
[333760725,1722457839419,-538.85379603,0.00013698,2]
[333760726,1722457839429,-510.16485124,0.00013698,2]
[333760727,1722457839441,-500.0,0.00013698,2]
[333760728,1722457839450,-500.0,0.00013698,2]
[333760729,1722457839459,-500.0,0.00013698,2]
[333760730,1722457839469,-500.0,0.00013698,2]
[333760731,1722457839480,-516.35918229,0.00013698,2]
[333760732,1722457839491,-500.0,0.00013698,2]
[333760733,1722457839501,-500.0,0.00013698,2]
[333760734,1722457839511,-504.37203134,0.00013698,2]
[333760735,1722457839521,-500.0,0.00013698,2]
[333760736,1722457839531,-500.0,0.00013698,2]
[333760737,1722457839540,-500.0,0.00013698,2]
[333760738,1722457839552,-500.0,0.00013698,2]
[333760739,1722457839575,-500.0,0.00013698,2]
[333760740,1722457839587,-500.0,0.00013698,2]
[333760742,1722457839597,-500.0,0.00013698,2]
[333760745,1722457839611,-500.0,0.00013698,2]
[333760747,1722457839620,-500.0,0.00013698,2]
[333760748,1722457839631,-500.0,0.00013698,2]
[333760749,1722457839640,-500.0,0.00013698,2]
[333760750,1722457839650,-500.0,0.00013698,2]
[333760751,1722457839664,-500.0,0.00013698,2]
[333760752,1722457839674,-500.0,0.00013698,2]
[333760753,1722457839685,-151.0,0.00013698,2]
[333760754,1722457839700,-500.0,0.00013698,2]
[333760755,1722457839715,-151.0,0.00013698,2]
[333760756,1722457839725,-519.52536568,0.00013698,2]
[333760757,1722457839736,-521.77973586,0.00013698,2]
[333760758,1722457839747,-500.0,0.00013698,2]
[333760759,1722457839757,-500.0,0.00013698,2]
[333760760,1722457839767,-859.4,0.00013698,2]
[333760761,1722457839777,-541.04651879,0.00013698,2]
[333760762,1722457839787,-500.0,0.00013698,2]
[333760763,1722457839797,-500.0,0.00013698,2]
[333760764,1722457839807,-511.70907281,0.00013698,2]
[333760765,1722457839817,-500.0,0.00013698,2]
[333760766,1722457839827,-500.0,0.00013698,2]
[333760767,1722457839837,-500.0,0.00013698,2]
[333760769,1722457839848,-500.0,0.00013698,2]
[333760771,1722457839859,-500.0,0.00013698,2]
[333760774,1722457839872,-501.12036414,0.00013698,2]
[333760776,1722457839883,-500.0,0.00013698,2]
[333760778,1722457839893,-153.92193523,0.00013698,2]
[333760780,1722457839904,-426.81114179,0.00013698,2]
[333760781,1722457839914,-500.0,0.00013698,2]
[333760782,1722457839923,-443.58542682,0.00013698,2]
[333760783,1722457839934,-500.0,0.00013698,2]
[333760784,1722457839947,-1788.97,0.00013698,2]
[333760785,1722457839956,-500.0,0.00013698,2]
[333760786,1722457839966,-500.0,0.00013698,2]
[333760787,1722457839976,-500.0,0.00013698,2]
[333760788,1722457839986,-565.73,0.00013698,2]
[333760790,1722457839996,-500.0,0.00013698,2]
[333760792,1722457840006,-151.0,0.00013698,2]
[333760794,1722457840016,-502.78378867,0.00013698,2]
[333760796,1722457840026,-500.0,0.00013698,2]
[333760798,1722457840036,-500.0,0.00013698,2]
[333760799,1722457840045,-500.0,0.00013698,2]
[333760800,1722457840055,-620.65085225,0.00013698,2]
[333760801,1722457840065,-359.10692004,0.00013698,2]
[333760802,1722457840074,-500.0,0.00013698,2]
[333760803,1722457840084,-500.0,0.00013698,2]
[333760804,1722457840094,-500.0,0.00013698,2]
[333760805,1722457840104,-500.0,0.00013698,2]
[333760806,1722457840115,-500.0,0.00013698,2]
[333760807,1722457840126,-511.38,0.00013698,2]
[333760808,1722457840136,-571.89,0.00013698,2]
[333760809,1722457840147,-500.0,0.00013698,2]
[333760810,1722457840156,-500.0,0.00013698,2]
[333760811,1722457840165,-500.0,0.00013698,2]
[333760812,1722457840175,-1827.62,0.00013698,2]
[333760813,1722457840186,-500.0,0.00013698,2]
[333760814,1722457840196,-500.0,0.00013698,2]
[333760815,1722457840206,-500.0,0.00013698,2]
[333760816,1722457840216,-500.0,0.00013698,2]
[333760817,1722457840225,-544.67,0.00013698,2]
[333760818,1722457840234,-1112.88742,0.00013698,2]
[333760819,1722457840244,-1112.88742,0.00013698,2]
[333760820,1722457840253,-500.0,0.00013698,2]
[333760821,1722457840263,-500.0,0.00013698,2]
[333760822,1722457840273,-500.0,0.00013698,2]
[333760823,1722457840283,-500.0,0.00013698,2]
[333760824,1722457840293,-500.0,0.00013698,2]
[333760825,1722457840303,-1166.54,0.00013698,2]
[333760826,1722457840313,-726.8,0.00013698,2]
[333760827,1722457840323,-504.88825234,0.00013698,2]
[333760828,1722457840333,-161.96211783,0.00013698,2]
[333760829,1722457840343,-596.45,0.00013698,2]
[333760830,1722457840353,-500.0,0.00013698,2]
[333760831,1722457840362,-1115.51,0.00013698,2]
[333760832,1722457840372,-151.0,0.00013698,2]
[333760833,1722457840382,-500.0,0.00013698,2]
[333760834,1722457840393,-500.0,0.00013698,2]
[333760835,1722457840403,-500.0,0.00013698,2]
[333760836,1722457840416,-500.0,0.00013698,2]
[333760837,1722457840426,-151.0,0.00013698,2]
[333760838,1722457840439,-500.0,0.00013698,2]
[333760839,1722457840449,-500.0,0.00013698,2]
[333760840,1722457840459,-500.0,0.00013698,2]
[333760841,1722457840469,-638.08,0.00013698,2]
[333760842,1722457840479,-1296.62,0.00013698,2]
[333760843,1722457840490,-500.0,0.00013698,2]
[333760844,1722457840500,-500.0,0.00013698,2]
[333760845,1722457840510,-718.55,0.00013698,2]
[333760846,1722457840520,-500.0,0.00013698,2]
[333760847,1722457840530,-500.0,0.00013698,2]
[333760848,1722457840540,-500.0,0.00013698,2]